fUSD/lending_fUSD_20260617
["ID","MTS","AMOUNT","RATE_DAILY","PERIOD"]
[425255895,1781634707000,-390.824516,0.00035455,7]
[425255891,1781634707000,-179.317282,0.00035455,7]
[425255899,1781634707000,-993.360127,0.00035455,7]
[425255909,1781634707000,-179.317282,0.00035455,7]
[425255898,1781634707000,-660.446682,0.00035455,7]
[425255897,1781634707000,-770.514652,0.00035455,7]
[425255934,1781634707000,-204.366753,0.00035455,7]
[425255939,1781634707000,-2917.101576,0.00035455,7]
[425255933,1781634707000,-238.920172,0.00035455,7]
[425255966,1781634707000,-399.18849,0.00035455,7]
[425255969,1781634707000,-388.413835,0.00035455,7]
[425255965,1781634707000,-692.07998,0.00035455,7]
[425255971,1781634707000,-692.07998,0.00035455,7]
[425255970,1781634707000,-399.18849,0.00035455,7]
[425255983,1781634707000,-399.18849,0.00035455,7]
[425255984,1781634707000,-931.731581,0.00035455,7]
[425255973,1781634707000,-198.081191,0.00035455,7]
[425255972,1781634707000,-931.731581,0.00035455,7]
[425255976,1781634707000,-399.18849,0.00035455,7]
[425255974,1781634707000,-388.413835,0.00035455,7]
[425255977,1781634707000,-931.731581,0.00035455,7]
[425255975,1781634707000,-1350.019466,0.00035455,7]
[425255979,1781634707000,-198.081191,0.00035455,7]
[425255980,1781634707000,-1997.775072,0.00035455,7]
[425255978,1781634707000,-692.07998,0.00035455,7]
[425255982,1781634707000,-1350.019466,0.00035455,7]
[425255981,1781634707000,-388.413835,0.00035455,7]
[425255985,1781634707000,-198.081191,0.00035455,7]
[425255987,1781634707000,-3101.713156,0.00035455,7]
[425255986,1781634707000,-1997.775072,0.00035455,7]
[425255988,1781634707000,-1350.019466,0.00035455,7]
[425255990,1781634707000,-1997.775072,0.00035455,7]
[425255989,1781634707000,-2721.127501,0.00035455,7]
[425255991,1781634707000,-3101.713156,0.00035455,7]
[425255993,1781634707000,-2301.506184,0.00035455,7]
[425255928,1781634707000,-204.366753,0.00035455,7]
[425255967,1781634707000,-931.731581,0.00035455,7]
[425255968,1781634707000,-198.081191,0.00035455,7]
[425255992,1781634707000,-1350.019466,0.00035455,7]
[425255962,1781634707000,-3101.713156,0.00035455,7]
[425255964,1781634707000,-151.0,0.00035455,7]
[425255938,1781634707000,-238.920172,0.00035455,7]
[425255930,1781634707000,-326.137243,0.00035455,7]
[425255937,1781634707000,-529.999072,0.00035455,7]
[425255941,1781634707000,-326.137243,0.00035455,7]
[425255943,1781634707000,-204.366753,0.00035455,7]
[425255940,1781634707000,-1495.172888,0.00035455,7]
[425255944,1781634707000,-1495.172888,0.00035455,7]
[425255942,1781634707000,-529.999072,0.00035455,7]
[425255947,1781634707000,-204.366753,0.00035455,7]
[425255946,1781634707000,-529.999072,0.00035455,7]
[425255945,1781634707000,-326.137243,0.00035455,7]
[425255949,1781634707000,-1329.178592,0.00035455,7]
[425255936,1781634707000,-326.137243,0.00035455,7]
[425255952,1781634707000,-1329.178592,0.00035455,7]
[425255950,1781634707000,-168.02051,0.00035455,7]
[425255961,1781634707000,-168.02051,0.00035455,7]
[425255960,1781634707000,-692.07998,0.00035455,7]
[425255959,1781634707000,-1329.178592,0.00035455,7]
[425255958,1781634707000,-1849.434566,0.00035455,7]
[425255957,1781634707000,-3101.713156,0.00035455,7]
[425255963,1781634707000,-388.413835,0.00035455,7]
[425255954,1781634707000,-1849.434566,0.00035455,7]
[425255948,1781634707000,-1849.434566,0.00035455,7]
[425255953,1781634707000,-168.02051,0.00035455,7]
[425255956,1781634707000,-168.02051,0.00035455,7]
[425255955,1781634707000,-1329.178592,0.00035455,7]
[425255951,1781634707000,-1849.434566,0.00035455,7]
[425256034,1781634708000,-411.575731,0.00035455,7]
[425256031,1781634708000,-158.474782,0.00035455,7]
[425256030,1781634708000,-3083.666204,0.00035455,7]
[425256029,1781634708000,-1456.594552,0.00035455,7]
[425256021,1781634708000,-1692.961456,0.00035455,7]
[425256027,1781634708000,-1692.961456,0.00035455,7]
[425256028,1781634708000,-1661.404131,0.00035455,7]
[425256025,1781634708000,-1289.520228,0.00035455,7]
[425256026,1781634708000,-411.575731,0.00035455,7]
[425256024,1781634708000,-1382.607938,0.00035455,7]
[425256032,1781634708000,-1382.607938,0.00035455,7]
[425256038,1781634708000,-184.774407,0.00035493,7]
[425256033,1781634708000,-1289.520228,0.00035455,7]
[425256039,1781634708000,-184.774407,0.00035493,7]
[425256036,1781634708000,-1456.594552,0.00035455,7]
[425256037,1781634708000,-278.94,0.0003546,69]
[425256035,1781634708000,-1692.961456,0.00035455,7]
[425256049,1781634708000,-168.132544,0.00035493,7]
[425256045,1781634708000,-166.28585,0.00035493,7]
[425256041,1781634708000,-184.774407,0.00035493,7]
[425256046,1781634708000,-166.28585,0.00035493,7]
[425256042,1781634708000,-151.0,0.00035493,7]
[425256023,1781634708000,-158.474782,0.00035455,7]
[425256040,1781634708000,-184.774407,0.00035493,7]
[425256022,1781634708000,-3083.666204,0.00035455,7]
[425256002,1781634708000,-196.575907,0.00035455,7]
[425256020,1781634708000,-1289.520228,0.00035455,7]
[425256051,1781634708000,-168.132544,0.00035493,7]
[425255996,1781634708000,-1318.157382,0.00035455,7]
[425255994,1781634708000,-2721.127501,0.00035455,7]
[425255995,1781634708000,-1997.775072,0.00035455,7]
[425255997,1781634708000,-2721.127501,0.00035455,7]
[425255999,1781634708000,-151.0,0.00035455,7]
[425255998,1781634708000,-196.575907,0.00035455,7]
[425256000,1781634708000,-1318.157382,0.00035455,7]
[425256001,1781634708000,-2721.127501,0.00035455,7]
[425256004,1781634708000,-1661.404131,0.00035455,7]
[425256003,1781634708000,-151.0,0.00035455,7]
[425256006,1781634708000,-1318.157382,0.00035455,7]
[425256007,1781634708000,-3083.666204,0.00035455,7]
[425256005,1781634708000,-2301.506184,0.00035455,7]
[425256009,1781634708000,-186.025911,0.00035455,7]
[425256010,1781634708000,-151.0,0.00035455,7]
[425256008,1781634708000,-196.575907,0.00035455,7]
[425256016,1781634708000,-196.575907,0.00035455,7]
[425256013,1781634708000,-1661.404131,0.00035455,7]
[425256014,1781634708000,-1289.520228,0.00035455,7]
[425256012,1781634708000,-1318.157382,0.00035455,7]
[425256011,1781634708000,-2301.506184,0.00035455,7]
[425256018,1781634708000,-411.575731,0.00035455,7]
[425256015,1781634708000,-3083.666204,0.00035455,7]
[425256017,1781634708000,-2301.506184,0.00035455,7]
[425256019,1781634708000,-1661.404131,0.00035455,7]
[425256043,1781634708000,-166.28585,0.00035493,7]
[425256050,1781634708000,-500.0,0.00035493,7]
[425256047,1781634708000,-168.132544,0.00035493,7]
[425256078,1781634708000,-1781.0,0.00035589,120]
[425256077,1781634708000,-1781.0,0.00035589,120]
[425256076,1781634708000,-1293.5,0.00035589,120]
[425256084,1781634708000,-300.0,0.00035614,30]
[425256080,1781634708000,-1595.5,0.00035589,120]
[425256079,1781634708000,-1595.5,0.00035589,120]
[425256086,1781634708000,-343.639898,0.00035616,30]
[425256085,1781634708000,-500.0,0.00035616,30]
[425256087,1781634708000,-1000.0,0.00035616,120]
[425256090,1781634708000,-1000.0,0.00035616,120]
[425256088,1781634708000,-600.0,0.00035616,120]
[425256083,1781634708000,-151.0,0.00035613,14]
[425256091,1781634708000,-159.04856,0.00035616,7]
[425256093,1781634708000,-159.04856,0.00035616,7]
[425256094,1781634708000,-159.04856,0.00035616,7]
[425256095,1781634708000,-151.0,0.00035616,7]
[425256096,1781634708000,-1000.0,0.00035616,120]
[425256098,1781634708000,-1919.79897192,0.00035616,60]
[425256097,1781634708000,-2239.76880057,0.00035616,30]
[425256101,1781634708000,-158.94556138,0.00035616,7]
[425256099,1781634708000,-500.0,0.00035616,120]
[425256100,1781634708000,-500.0,0.00035616,120]
[425256102,1781634708000,-660.79245543,0.00035616,7]
[425256048,1781634708000,-500.0,0.00035493,7]
[425256092,1781634708000,-159.04856,0.00035616,7]
[425256081,1781634708000,-158.25033973,0.0003559,3]
[425256089,1781634708000,-2000.0,0.00035616,30]
[425256082,1781634708000,-400.0,0.00035591,60]
[425256075,1781634708000,-1293.5,0.00035589,120]
[425256053,1781634708000,-168.132544,0.00035493,7]
[425256052,1781634708000,-500.0,0.00035493,7]
[425256054,1781634708000,-500.0,0.00035493,7]
[425256055,1781634708000,-400.0,0.00035493,7]
[425256056,1781634708000,-400.0,0.00035493,7]
[425256058,1781634708000,-400.0,0.00035493,7]
[425256060,1781634708000,-20890.55152087,0.00035493,2]
[425256059,1781634708000,-400.0,0.00035493,7]
[425256061,1781634708000,-500.0,0.000355,120]
[425256062,1781634708000,-800.0,0.000355,7]
[425256057,1781634708000,-151.0,0.00035493,7]
[425256044,1781634708000,-166.28585,0.00035493,7]
[425256073,1781634708000,-2137.5,0.00035589,120]
[425256064,1781634708000,-2452.5119,0.00035513,2]
[425256071,1781634708000,-1001.0,0.00035562,7]
[425256070,1781634708000,-160.45822055,0.00035548,2]
[425256069,1781634708000,-10000.0,0.0003553,2]
[425256066,1781634708000,-7362.944696,0.0003553,2]
[425256074,1781634708000,-2137.5,0.00035589,120]
[425256068,1781634708000,-2000.0,0.0003553,2]
[425256063,1781634708000,-800.0,0.000355,7]
[425256065,1781634708000,-7472.9621,0.00035513,2]
[425256072,1781634708000,-601.436173,0.00035579,120]
[425256067,1781634708000,-1411.900556,0.0003553,2]
[425256149,1781634709000,-660.79245543,0.00035616,7]
[425256140,1781634709000,-660.79245543,0.00035616,7]
[425256130,1781634709000,-660.79245543,0.00035616,7]
[425256137,1781634709000,-660.79245543,0.00035616,7]
[425256136,1781634709000,-660.79245543,0.00035616,7]
[425256133,1781634709000,-660.79245543,0.00035616,7]
[425256131,1781634709000,-660.79245543,0.00035616,7]
[425256128,1781634709000,-660.79245543,0.00035616,7]
[425256135,1781634709000,-660.79245543,0.00035616,7]
[425256150,1781634709000,-660.79245543,0.00035616,7]
[425256132,1781634709000,-660.79245543,0.00035616,7]
[425256139,1781634709000,-660.79245543,0.00035616,7]
[425256142,1781634709000,-660.79245543,0.00035616,7]
[425256148,1781634709000,-660.79245543,0.00035616,7]
[425256143,1781634709000,-660.79245543,0.00035616,7]
[425256145,1781634709000,-660.79245543,0.00035616,7]
[425256147,1781634709000,-660.79245543,0.00035616,7]
[425256144,1781634709000,-660.79245543,0.00035616,7]
[425256146,1781634709000,-660.79245543,0.00035616,7]
[425256151,1781634709000,-660.79245543,0.00035616,7]
[425256152,1781634709000,-660.79245543,0.00035616,7]
[425256162,1781634709000,-1160.134367,0.00035616,30]
[425256156,1781634709000,-1160.134367,0.00035616,30]
[425256134,1781634709000,-660.79245543,0.00035616,7]
[425256141,1781634709000,-660.79245543,0.00035616,7]
[425256138,1781634709000,-660.79245543,0.00035616,7]
[425256160,1781634709000,-1160.134367,0.00035616,30]
[425256125,1781634709000,-660.79245543,0.00035616,7]
[425256105,1781634709000,-660.79245543,0.00035616,7]
[425256106,1781634709000,-660.79245543,0.00035616,7]
[425256103,1781634709000,-660.79245543,0.00035616,7]
[425256104,1781634709000,-660.79245543,0.00035616,7]
[425256113,1781634709000,-660.79245543,0.00035616,7]
[425256110,1781634709000,-660.79245543,0.00035616,7]
[425256111,1781634709000,-660.79245543,0.00035616,7]
[425256114,1781634709000,-660.79245543,0.00035616,7]
[425256116,1781634709000,-660.79245543,0.00035616,7]
[425256108,1781634709000,-660.79245543,0.00035616,7]
[425256107,1781634709000,-660.79245543,0.00035616,7]
[425256129,1781634709000,-660.79245543,0.00035616,7]
[425256115,1781634709000,-660.79245543,0.00035616,7]
[425256109,1781634709000,-660.79245543,0.00035616,7]
[425256112,1781634709000,-660.79245543,0.00035616,7]
[425256118,1781634709000,-660.79245543,0.00035616,7]
[425256123,1781634709000,-660.79245543,0.00035616,7]
[425256124,1781634709000,-660.79245543,0.00035616,7]
[425256121,1781634709000,-660.79245543,0.00035616,7]
[425256120,1781634709000,-660.79245543,0.00035616,7]
[425256119,1781634709000,-660.79245543,0.00035616,7]
[425256126,1781634709000,-660.79245543,0.00035616,7]
[425256127,1781634709000,-660.79245543,0.00035616,7]
[425256122,1781634709000,-660.79245543,0.00035616,7]
[425256117,1781634709000,-660.79245543,0.00035616,7]
[425256154,1781634709000,-562.47,0.00035616,2]
[425256196,1781634709000,-1000.0,0.00035835,120]
[425256157,1781634709000,-1160.134367,0.00035616,30]
[425256188,1781634709000,-500.0,0.00035756,60]
[425256193,1781634709000,-1000.0,0.00035808,120]
[425256192,1781634709000,-1000.0,0.0003578,120]
[425256184,1781634709000,-1000.0,0.00035698,120]
[425256191,1781634709000,-7472.9621,0.00035759,2]
[425256189,1781634709000,-700.0,0.00035756,60]
[425256190,1781634709000,-2452.5119,0.00035759,2]
[425256195,1781634709000,-500.0,0.00035816,120]
[425256205,1781634709000,-278.94,0.000359,98]
[425256194,1781634709000,-500.0,0.00035816,120]
[425256197,1781634709000,-151.5,0.00035836,7]
[425256187,1781634709000,-500.0,0.00035756,60]
[425256199,1781634709000,-158.25033973,0.00035864,3]
[425256200,1781634709000,-607.325284,0.00035879,120]
[425256201,1781634709000,-2452.5119,0.00035883,2]
[425256202,1781634709000,-7472.9621,0.00035883,2]
[425256204,1781634709000,-150.0,0.00035899,2]
[425256203,1781634709000,-1000.0,0.0003589,120]
[425256206,1781634709000,-150.0,0.000359,120]
[425256208,1781634709000,-200.0,0.000359,12]
[425256209,1781634709000,-204.0,0.000359,120]
[425256210,1781634709000,-1000.0,0.00035917,120]
[425256211,1781634709000,-1000.0,0.00035945,120]
[425256153,1781634709000,-660.79245543,0.00035616,7]
[425256198,1781634709000,-1000.0,0.00035863,120]
[425256186,1781634709000,-1000.0,0.00035753,120]
[425256207,1781634709000,-214.24,0.000359,2]
[425256183,1781634709000,-1000.0,0.0003569,70]
[425256185,1781634709000,-1000.0,0.00035726,120]
[425256161,1781634709000,-1160.134367,0.00035616,30]
[425256158,1781634709000,-1160.134367,0.00035616,30]
[425256159,1781634709000,-1160.134367,0.00035616,30]
[425256163,1781634709000,-1160.134367,0.00035616,30]
[425256164,1781634709000,-1160.134367,0.00035616,30]
[425256167,1781634709000,-1160.134367,0.00035616,30]
[425256165,1781634709000,-1160.134367,0.00035616,30]
[425256170,1781634709000,-1160.134367,0.00035616,30]
[425256166,1781634709000,-1160.134367,0.00035616,30]
[425256171,1781634709000,-600.0,0.00035621,120]
[425256168,1781634709000,-1160.134367,0.00035616,30]
[425256155,1781634709000,-1160.134367,0.00035616,30]
[425256173,1781634709000,-2452.5119,0.00035636,2]
[425256169,1781634709000,-1160.134367,0.00035616,30]
[425256176,1781634709000,-1000.0,0.00035643,120]
[425256177,1781634709000,-204.0,0.0003565,120]
[425256178,1781634709000,-386.0,0.00035654,2]
[425256179,1781634709000,-6420.0,0.00035661,10]
[425256180,1781634709000,-1000.0,0.00035671,120]
[425256181,1781634709000,-723.0,0.00035681,11]
[425256182,1781634709000,-514.8,0.00035685,7]
[425256175,1781634709000,-479.0,0.00035643,2]
[425256172,1781634709000,-315.0,0.00035627,120]
[425256174,1781634709000,-7472.9621,0.00035636,2]
[425256251,1781634710000,-150.0,0.0003602,2]
[425256248,1781634710000,-2452.5119,0.00036006,2]
[425256247,1781634710000,-1260.54236754,0.00036,7]
[425256240,1781634710000,-1000.0,0.00036,120]
[425256252,1781634710000,-1000.0,0.00036027,120]
[425256245,1781634710000,-3407.68548292,0.00036,30]
[425256246,1781634710000,-787.51842334,0.00036,7]
[425256242,1781634710000,-3407.68548293,0.00036,30]
[425256243,1781634710000,-400.0,0.00036,60]
[425256250,1781634710000,-150.0,0.0003602,2]
[425256244,1781634710000,-3407.68548292,0.00036,30]
[425256249,1781634710000,-7472.9621,0.00036006,2]
[425256258,1781634710000,-323.07710955,0.000361,30]
[425256257,1781634710000,-7600.40094074,0.000361,30]
[425256254,1781634710000,-1000.0,0.00036054,120]
[425256259,1781634710000,-323.07710954,0.000361,30]
[425256260,1781634710000,-323.07710954,0.000361,30]
[425256255,1781634710000,-1000.0,0.00036082,120]
[425256263,1781634710000,-4638.39058347,0.000361,30]
[425256262,1781634710000,-4638.39058347,0.000361,30]
[425256256,1781634710000,-5000.0,0.00036083,10]
[425256261,1781634710000,-4638.39058348,0.000361,30]
[425256265,1781634710000,-700.0,0.00036107,2]
[425256238,1781634710000,-371.0,0.00036,120]
[425256253,1781634710000,-830.9,0.00036054,10]
[425256235,1781634710000,-179.4136144,0.00036,120]
[425256217,1781634710000,-150.0,0.00035951,2]
[425256241,1781634710000,-800.0,0.00036,2]
[425256264,1781634710000,-377.0,0.00036105,2]
[425256212,1781634710000,-858.0,0.00035951,30]
[425256218,1781634710000,-150.0,0.00035951,2]
[425256213,1781634710000,-858.0,0.00035951,30]
[425256215,1781634710000,-858.0,0.00035951,30]
[425256214,1781634710000,-858.0,0.00035951,30]
[425256216,1781634710000,-711.0,0.00035951,30]
[425256220,1781634710000,-500.0,0.00035951,2]
[425256219,1781634710000,-500.0,0.00035951,2]
[425256230,1781634710000,-272.55330259,0.00036,120]
[425256221,1781634710000,-1000.0,0.00035951,2]
[425256226,1781634710000,-400.0,0.0003597,2]
[425256224,1781634710000,-150.0,0.00035951,2]
[425256222,1781634710000,-1000.0,0.00035951,2]
[425256228,1781634710000,-1000.0,0.00035972,120]
[425256223,1781634710000,-1000.0,0.00035951,2]
[425256229,1781634710000,-165.7013292,0.00036,120]
[425256225,1781634710000,-150.0,0.00035951,2]
[425256227,1781634710000,-400.0,0.0003597,2]
[425256231,1781634710000,-178.59196415,0.00036,120]
[425256234,1781634710000,-800.0,0.00036,7]
[425256232,1781634710000,-800.0,0.00036,7]
[425256236,1781634710000,-160.29220129,0.00036,120]
[425256237,1781634710000,-730.0,0.00036,30]
[425256233,1781634710000,-500.0,0.00036,120]
[425256239,1781634710000,-296.91972026,0.00036,120]
[425256266,1781634710000,-1000.0,0.00036109,120]
[425256271,1781634710000,-158.25033973,0.00036138,3]
[425256267,1781634710000,-2452.5119,0.00036129,2]
[425256302,1781634710000,-164.9682264,0.00036209,120]
[425256304,1781634710000,-291.8493775,0.00036209,120]
[425256299,1781634710000,-177.1322247,0.00036209,120]
[425256300,1781634710000,-263.1081485,0.00036209,120]
[425256301,1781634710000,-234.375,0.00036209,120]
[425256305,1781634710000,-214.3336185,0.00036209,120]
[425256306,1781634710000,-234.375,0.00036209,120]
[425256303,1781634710000,-189.84375,0.00036209,120]
[425256307,1781634710000,-177.1859959,0.00036209,120]
[425256308,1781634710000,-228.1698557,0.00036209,120]
[425256309,1781634710000,-288.4100503,0.00036209,120]
[425256313,1781634710000,-234.375,0.00036209,120]
[425256315,1781634710000,-234.375,0.00036209,120]
[425256316,1781634710000,-285.2454715,0.00036209,120]
[425256310,1781634710000,-191.4887789,0.00036209,120]
[425256311,1781634710000,-190.4303728,0.00036209,120]
[425256312,1781634710000,-219.4978866,0.00036209,120]
[425256314,1781634710000,-166.8557218,0.00036209,120]
[425256317,1781634710000,-275.0221129,0.00036209,120]
[425256319,1781634710000,-214.9049622,0.00036209,120]
[425256268,1781634710000,-7472.9621,0.00036129,2]
[425256320,1781634710000,-222.5012802,0.00036209,120]
[425256321,1781634710000,-234.375,0.00036209,120]
[425256323,1781634710000,-500.0,0.00036209,120]
[425256322,1781634710000,-232.592795,0.00036209,120]
[425256298,1781634710000,-234.375,0.00036209,120]
[425256294,1781634710000,-163.3122978,0.00036209,120]
[425256318,1781634710000,-286.0158101,0.00036209,120]
[425256291,1781634710000,-1278.28,0.000362,120]
[425256292,1781634710000,-1278.28,0.000362,30]
[425256270,1781634710000,-1000.0,0.00036136,120]
[425256272,1781634710000,-204.0,0.0003615,120]
[425256274,1781634710000,-306.0,0.00036164,10]
[425256273,1781634710000,-1000.0,0.00036164,120]
[425256276,1781634710000,-1734.78,0.00036177,2]
[425256286,1781634710000,-974.0,0.00036193,3]
[425256275,1781634710000,-350.0,0.00036169,2]
[425256278,1781634710000,-300.0,0.00036177,2]
[425256280,1781634710000,-300.0,0.00036177,2]
[425256284,1781634710000,-25000.0,0.00036191,10]
[425256277,1781634710000,-300.0,0.00036177,2]
[425256269,1781634710000,-152.0,0.00036135,13]
[425256281,1781634710000,-313.67,0.00036177,2]
[425256285,1781634710000,-1000.0,0.00036191,120]
[425256293,1781634710000,-687.73,0.00036201,10]
[425256295,1781634710000,-234.375,0.00036209,120]
[425256297,1781634710000,-234.375,0.00036209,120]
[425256289,1781634710000,-330.9131,0.000362,120]
[425256296,1781634710000,-206.3351029,0.00036209,120]
[425256287,1781634710000,-645.02,0.000362,60]
[425256288,1781634710000,-645.02,0.000362,120]
[425256283,1781634710000,-1465.08,0.00036183,5]
[425256282,1781634710000,-574.082881,0.00036179,120]
[425256279,1781634710000,-300.0,0.00036177,2]
[425256290,1781634710000,-1278.28,0.000362,60]
[425256345,1781634711000,-971.3738986,0.00036209,120]
[425256362,1781634711000,-500.0,0.00036209,120]
[425256348,1781634711000,-588.0342773,0.00036209,120]
[425256352,1781634711000,-500.0,0.00036209,120]
[425256354,1781634711000,-500.0,0.00036209,120]
[425256357,1781634711000,-250.35,0.00036209,120]
[425256355,1781634711000,-500.0,0.00036209,120]
[425256353,1781634711000,-500.0,0.00036209,120]
[425256360,1781634711000,-265.625,0.00036209,120]
[425256349,1781634711000,-271.8986181,0.00036209,120]
[425256361,1781634711000,-500.0,0.00036209,120]
[425256359,1781634711000,-868.1872231,0.00036209,120]
[425256356,1781634711000,-840.7536226,0.00036209,120]
[425256358,1781634711000,-265.625,0.00036209,120]
[425256365,1781634711000,-500.0,0.00036209,120]
[425256367,1781634711000,-161.8706584,0.00036209,120]
[425256372,1781634711000,-188.955378,0.00036253,30]
[425256368,1781634711000,-871.7228565,0.00036209,120]
[425256369,1781634711000,-723.0,0.00036214,11]
[425256342,1781634711000,-500.0,0.00036209,120]
[425256363,1781634711000,-500.0,0.00036209,120]
[425256343,1781634711000,-525.0739223,0.00036209,120]
[425256334,1781634711000,-500.0,0.00036209,120]
[425256340,1781634711000,-500.0,0.00036209,120]
[425256370,1781634711000,-1000.0,0.00036219,120]
[425256324,1781634711000,-500.0,0.00036209,120]
[425256329,1781634711000,-172.3689006,0.00036209,120]
[425256325,1781634711000,-500.0,0.00036209,120]
[425256328,1781634711000,-232.868795,0.00036209,120]
[425256326,1781634711000,-881.8282791,0.00036209,120]
[425256327,1781634711000,-228.3450926,0.00036209,120]
[425256331,1781634711000,-500.0,0.00036209,120]
[425256330,1781634711000,-247.0546176,0.00036209,120]
[425256332,1781634711000,-500.0,0.00036209,120]
[425256335,1781634711000,-234.375,0.00036209,120]
[425256333,1781634711000,-973.3654534,0.00036209,120]
[425256338,1781634711000,-811.553492,0.00036209,120]
[425256337,1781634711000,-500.0,0.00036209,120]
[425256336,1781634711000,-500.0,0.00036209,120]
[425256339,1781634711000,-500.0,0.00036209,120]
[425256351,1781634711000,-500.0,0.00036209,120]
[425256341,1781634711000,-500.0,0.00036209,120]
[425256346,1781634711000,-400.2979564,0.00036209,120]
[425256344,1781634711000,-435.6044399,0.00036209,120]
[425256347,1781634711000,-203.1069868,0.00036209,120]
[425256350,1781634711000,-500.0,0.00036209,120]
[425256366,1781634711000,-233.192852,0.00036209,120]
[425256364,1781634711000,-500.0,0.00036209,120]
[425256371,1781634711000,-1000.0,0.00036246,120]
[425256400,1781634711000,-244.583144,0.00036253,30]
[425256403,1781634711000,-964.995997,0.00036253,30]
[425256404,1781634711000,-964.995997,0.00036253,30]
[425256402,1781634711000,-964.995997,0.00036253,30]
[425256401,1781634711000,-964.995997,0.00036253,30]
[425256399,1781634711000,-151.0,0.00036253,30]
[425256405,1781634711000,-3183.125864,0.00036253,30]
[425256406,1781634711000,-3183.125864,0.00036253,30]
[425256409,1781634711000,-927.482927,0.00036253,30]
[425256408,1781634711000,-3183.125864,0.00036253,30]
[425256410,1781634711000,-927.482927,0.00036253,30]
[425256411,1781634711000,-927.482927,0.00036253,30]
[425256412,1781634711000,-927.482927,0.00036253,30]
[425256414,1781634711000,-1574.914658,0.00036253,30]
[425256415,1781634711000,-1574.914658,0.00036253,30]
[425256407,1781634711000,-3183.125864,0.00036253,30]
[425256417,1781634711000,-1811.955218,0.00036253,30]
[425256416,1781634711000,-1574.914658,0.00036253,30]
[425256420,1781634711000,-1811.955218,0.00036253,30]
[425256418,1781634711000,-1811.955218,0.00036253,30]
[425256373,1781634711000,-188.955378,0.00036253,30]
[425256398,1781634711000,-244.583144,0.00036253,30]
[425256392,1781634711000,-254.525842,0.00036253,30]
[425256413,1781634711000,-1574.914658,0.00036253,30]
[425256394,1781634711000,-244.583144,0.00036253,30]
[425256396,1781634711000,-244.583144,0.00036253,30]
[425256375,1781634711000,-188.955378,0.00036253,30]
[425256378,1781634711000,-301.88273,0.00036253,30]
[425256376,1781634711000,-301.88273,0.00036253,30]
[425256374,1781634711000,-188.955378,0.00036253,30]
[425256419,1781634711000,-1811.955218,0.00036253,30]
[425256380,1781634711000,-280.286577,0.00036253,30]
[425256381,1781634711000,-301.88273,0.00036253,30]
[425256382,1781634711000,-151.0,0.00036253,30]
[425256379,1781634711000,-205.741682,0.00036253,30]
[425256377,1781634711000,-205.741682,0.00036253,30]
[425256389,1781634711000,-254.525842,0.00036253,30]
[425256383,1781634711000,-205.741682,0.00036253,30]
[425256385,1781634711000,-301.88273,0.00036253,30]
[425256387,1781634711000,-254.525842,0.00036253,30]
[425256397,1781634711000,-151.0,0.00036253,30]
[425256388,1781634711000,-280.286577,0.00036253,30]
[425256386,1781634711000,-205.741682,0.00036253,30]
[425256395,1781634711000,-151.0,0.00036253,30]
[425256390,1781634711000,-280.286577,0.00036253,30]
[425256393,1781634711000,-254.525842,0.00036253,30]
[425256384,1781634711000,-280.286577,0.00036253,30]
[425256466,1781634712000,-151.0,0.000364,30]
[425256445,1781634712000,-170.0832424,0.00036399,7]
[425256459,1781634712000,-151.0,0.000364,30]
[425256461,1781634712000,-420.0,0.000364,30]
[425256465,1781634712000,-151.0,0.000364,30]
[425256457,1781634712000,-151.0,0.000364,30]